bitfinex/quotes_ETHUSD_20250903
["timestamp","ask_amount","ask_price","bid_price","bid_amount"]
[1756905496308,26.54605102,4398.9,4398.8,0.025]
[1756905497027,7.59089559,4398.9,4398.8,0.025]
[1756905497227,11.50829559,4398.9,4398.8,0.025]
[1756905497388,7.47729559,4398.9,4398.8,0.025]
[1756905497589,11.50929559,4398.9,4398.8,0.025]
[1756905498033,11.50829559,4398.9,4398.8,0.025]
[1756905498735,8.50829559,4398.9,4398.8,0.025]
[1756905498933,4.47729559,4398.9,4398.8,0.025]
[1756905499102,8.05329559,4398.9,4398.8,0.025]
[1756905499301,8.50929559,4398.9,4398.8,0.025]
[1756905499720,5.785,4398.9,4398.8,0.025]
[1756905499902,1.748,4398.9,4398.8,0.025]
[1756905500234,4.038,4398.9,4398.8,0.025]
[1756905501200,6.31129559,4398.9,4398.8,0.025]
[1756905501569,4.038,4398.9,4398.8,0.025]
[1756905502196,6.31129559,4398.9,4398.8,0.025]
[1756905502395,4.038,4398.9,4398.8,0.025]
[1756905502619,4.035,4398.9,4398.8,0.025]
[1756905502808,6.76129559,4398.9,4398.8,0.025]
[1756905503121,7.39212019,4398.9,4398.8,0.025]
[1756905503500,0.6308246,4398.9,4398.8,0.025]
[1756905503700,6.30429559,4398.9,4398.8,0.025]
[1756905503889,2.204,4399.6,4398.8,0.484]
[1756905504092,4.031,4399.5,4398.8,0.7766]
[1756905504404,2.27312679,4399.3,4398.8,0.7766]
[1756905504607,4.031,4399.2,4398.8,0.025]
[1756905504805,4.031,4399.1,4398.8,0.025]
[1756905505619,4.031,4399.1,4398.8,0.484]
[1756905506127,4.0302,4399.1,4398.8,0.484]
[1756905506293,4.0302,4399.1,4399.0,0.2926]
[1756905506495,0.456,4400.4,4399.0,1.2373]
[1756905506701,4.028,4400.2,4399.2,2.27314057]
[1756905507028,2.2727158,4400.1,4399.3,0.9447]
[1756905507229,32.4729327,4400.0,4399.6,0.1136]
[1756905507401,32.47293059,4400.0,4399.6,0.5726]
[1756905507934,0.456,4399.9,4399.0,0.459]
[1756905508141,2.2730889,4399.3,4398.8,0.025]
[1756905508433,2.27324147,4399.1,4398.8,0.025]
[1756905508635,2.27329559,4398.9,4398.8,0.025]
[1756905509098,2.38689559,4398.9,4398.8,0.025]
[1756905509299,2.84289559,4398.9,4398.8,0.025]
[1756905509498,3.75720485,4398.9,4398.8,0.025]
[1756905509710,2.27320482,4399.1,4398.8,0.025]
[1756905509909,2.2730889,4399.3,4398.8,0.025]
[1756905510108,4.025,4399.4,4398.8,0.025]
[1756905510634,4.5027,4399.4,4398.8,0.025]
[1756905510934,2.27329559,4398.9,4398.8,0.025]
[1756905511099,6.75194543,4398.9,4398.8,0.025]
[1756905511299,7.22964543,4398.9,4398.8,0.025]
[1756905511725,6.29629559,4398.9,4398.8,0.025]
[1756905511918,4.023,4398.9,4398.8,0.025]
[1756905512113,4.022,4398.9,4398.8,0.025]
[1756905512433,4.022,4398.9,4398.8,0.7841]
[1756905512736,6.29529559,4398.9,4398.8,0.025]
[1756905513435,6.29529559,4398.9,4398.8,0.029]
[1756905513652,4.022,4398.9,4398.8,0.029]
[1756905513823,6.29529559,4398.9,4398.8,0.029]
[1756905514520,4.022,4398.9,4398.8,0.029]
[1756905514901,1.748,4399.2,4398.8,0.7881]
[1756905515108,4.018,4399.1,4398.9,0.4739]
[1756905515629,4.018,4399.1,4398.8,0.029]
[1756905515808,2.75094391,4399.0,4398.8,0.029]
[1756905516005,6.29229559,4398.9,4398.8,0.029]
[1756905516212,6.76999559,4398.9,4398.8,0.029]
[1756905519199,21.69315102,4398.9,4398.8,0.029]
[1756905519403,24.69315102,4398.9,4398.8,0.029]
[1756905519599,25.29445811,4398.9,4398.8,0.029]
[1756905519803,25.29445811,4398.9,4398.8,1e-08]
[1756905519804,25.40805811,4398.9,4398.8,1e-08]
[1756905520012,26.20005811,4398.9,4398.8,1e-08]
[1756905520810,26.31286292,4398.9,4398.8,1e-08]
[1756905521439,26.31286292,4398.9,4397.8,1e-08]
[1756905521440,17.19696793,4397.9,4397.8,1e-08]
[1756905521642,25.95796793,4397.9,4397.8,1e-08]
[1756905521820,26.43566793,4397.9,4397.8,1e-08]
[1756905522022,2.27432964,4396.9,4396.8,0.025]
[1756905522222,8.03432964,4396.9,4396.8,0.025]
[1756905522512,2.27484701,4395.9,4395.8,0.025]
[1756905522815,2.27463187,4396.4,4395.9,0.4739]
[1756905523015,2.27473693,4396.2,4395.9,0.4739]
[1756905523226,4.016,4396.3,4396.0,0.4739]
[1756905523405,2.27474792,4396.1,4395.9,0.4891]
[1756905523611,4.017,4396.0,4395.9,0.4891]
[1756905524024,1.748,4396.9,4395.9,1.2482]
[1756905524238,1.748,4396.9,4396.0,1.09032]
[1756905524239,4.016,4396.7,4396.0,1.09032]
[1756905524438,6.29043896,4396.7,4396.0,1.09032]
[1756905524653,4.016,4396.7,4396.0,1.09032]
[1756905524862,2.27459541,4396.4,4396.1,0.4739]
[1756905525036,6.29259541,4396.4,4396.1,0.4739]
[1756905525240,6.29259541,4396.4,4396.3,0.2852]
[1756905525447,6.29259541,4396.4,4396.3,0.7591]
[1756905525729,2.27469819,4396.2,4395.8,0.4989]
[1756905526053,4.017,4396.1,4395.8,0.4989]
[1756905526252,2.27484701,4395.9,4395.8,0.025]
[1756905526831,2.27484701,4395.9,4395.8,0.4989]
[1756905527265,2.27484701,4395.9,4395.8,0.025]
[1756905527667,3.0,4396.7,4395.8,0.7841]
[1756905527969,2.27480595,4396.0,4395.8,0.7841]
[1756905528171,4.015,4395.9,4395.8,0.3102]
[1756905528663,4.015,4395.9,4395.8,0.7841]
[1756905529067,6.28984701,4395.9,4395.8,0.7841]
[1756905529730,4.015,4395.9,4395.8,0.7841]
[1756905529931,6.28984701,4395.9,4395.8,0.7841]
[1756905530859,6.28904701,4395.9,4395.8,0.7841]
[1756905531367,6.28904701,4395.9,4395.8,0.025]
[1756905531368,6.40264701,4395.9,4395.8,0.025]
[1756905531544,7.27038668,4395.9,4395.8,0.025]
[1756905532135,4.1278,4395.9,4395.8,0.025]
[1756905532349,6.40264701,4395.9,4395.8,0.025]
[1756905532552,6.40264701,4395.9,4395.8,0.029]
[1756905533975,0.1136,4395.9,4395.8,1.2772]
[1756905534146,4.007,4396.2,4395.8,1.51852]
[1756905534472,4.007,4396.1,4395.9,0.963]
[1756905534674,4.007,4396.1,4396.0,0.7591]
[1756905536162,4.007,4396.1,4395.8,0.1426]
[1756905536163,2.27484701,4395.9,4395.8,0.029]
[1756905536478,6.39244701,4395.9,4395.8,0.029]
[1756905537245,7.73687391,4395.9,4395.8,0.029]
[1756905538573,6.39244701,4395.9,4395.8,0.029]
[1756905539644,6.87014701,4395.9,4395.8,0.029]
[1756905540648,9.87014701,4395.9,4395.8,0.029]
[1756905542050,5.27484701,4395.9,4395.8,0.029]
[1756905542290,9.38844701,4395.9,4395.8,0.029]
[1756905544060,9.38844701,4395.9,4395.8,0.7793]
[1756905544578,9.38544701,4395.9,4395.8,0.7793]
[1756905545173,5.38844701,4395.9,4395.8,0.7793]
[1756905545376,6.38344701,4395.9,4395.8,0.7793]
[1756905547169,4.1086,4395.9,4395.8,0.7793]
[1756905547370,0.1136,4396.4,4395.8,1.3467]
[1756905547603,1.917,4396.7,4396.0,2.27475222]
[1756905547801,1.917,4396.7,4396.6,0.306]
[1756905548004,1.917,4396.7,4396.6,0.7503]
[1756905550170,1.917,4396.7,4396.6,1.2041]
[1756905551094,1.917,4396.7,4396.6,3.47858482]
[1756905551267,1.917,4396.7,4396.6,1.2041]
[1756905551472,1.917,4396.7,4396.6,0.7503]
[1756905551891,1.917,4396.7,4396.2,0.4443]
[1756905552205,1.917,4396.7,4395.8,0.4733]
[1756905552206,2.73857181,4396.7,4395.8,0.4733]
[1756905552499,2.38833073,4396.2,4395.8,0.4733]
[1756905552700,3.987,4396.1,4395.9,0.4443]
[1756905552900,0.1136,4396.2,4396.1,0.306]
[1756905553105,4.1006,4396.2,4396.1,0.306]
[1756905553299,4.1006,4396.2,4396.1,0.7503]
[1756905553472,3.986,4396.2,4396.1,1.2041]
[1756905553910,0.6838051,4396.6,4396.3,2.27460305]
[1756905554074,3.986,4396.6,4396.5,0.306]
[1756905554496,3.986,4396.6,4396.5,1.2041]
[1756905555011,3.9852,4396.6,4396.5,3.47863106]
[1756905555208,3.9852,4396.6,4396.5,1.2041]
[1756905555791,0.001,4396.7,4396.5,1.2041]
[1756905555989,3.986,4396.7,4396.6,0.4443]
[1756905556184,3.986,4396.7,4396.6,1.2041]
[1756905558292,3.986,4396.7,4396.6,0.7503]
[1756905558487,3.986,4396.7,4396.3,0.1136]
[1756905558687,3.986,4396.7,4396.6,0.306]
[1756905559096,3.986,4396.7,4396.6,0.7503]
[1756905559296,3.986,4396.7,4396.6,0.8639]
[1756905559778,3.986,4396.7,4396.2,2.27467816]
[1756905559980,3.986,4396.7,4396.3,2.8325209]
[1756905560278,3.986,4396.7,4396.6,0.306]
[1756905560490,3.986,4396.7,4396.6,0.7503]
[1756905562231,2.27460069,4396.4,4395.8,0.029]
[1756905562403,0.1146,4396.7,4396.6,0.306]
[1756905562612,4.0886,4396.7,4396.6,0.306]
[1756905562800,2.27449098,4396.6,4395.8,0.029]
[1756905563001,2.27454707,4396.5,4395.8,0.4733]
[1756905563201,3.974,4396.4,4396.0,0.1136]
[1756905563621,3.974,4396.4,4396.3,0.306]
[1756905563821,3.974,4396.4,4396.3,0.7503]
[1756905564501,3.971,4396.4,4396.3,0.7503]
[1756905566230,3.971,4396.4,4396.0,0.1136]
[1756905566429,3.971,4396.4,4395.8,0.1426]
[1756905566729,3.971,4396.4,4395.9,2.71912653]
[1756905566896,3.971,4396.4,4396.3,0.306]
[1756905567095,3.968,4396.4,4396.3,0.7503]
[1756905567295,0.6838051,4396.5,4396.3,1.2041]
[1756905567603,3.967,4396.5,4396.4,3.52056724]
[1756905567805,3.967,4396.5,4396.4,1.2041]
[1756905568620,3.967,4396.5,4396.4,3.47868829]
[1756905568821,0.001,4396.7,4396.6,2.27448482]
[1756905569336,0.001,4396.7,4396.6,3.59218482]
[1756905569514,0.001,4396.7,4396.6,4.17886189]
[1756905570624,0.001,4396.7,4396.6,4.34541688]
[1756905571808,0.001,4396.7,4396.6,4.34941688]
[1756905572619,0.001,4396.7,4396.6,8.31241688]
[1756905573836,0.001,4396.7,4396.6,4.34941688]
[1756905574036,0.001,4396.7,4396.6,8.30841688]
[1756905575559,0.001,4396.7,4396.6,8.30741688]
[1756905578920,0.001,4396.7,4396.6,8.30141688]
[1756905579543,0.0002,4396.7,4396.6,8.30141688]
[1756905579849,0.0002,4396.7,4396.6,8.29941688]
[1756905581543,0.0002,4396.7,4396.6,20.99172683]
[1756905581725,0.025,4397.8,4397.7,3.06591591]
[1756905581921,0.025,4399.8,4398.1,0.792]
[1756905582157,0.025,4399.8,4399.2,2.27310147]
[1756905582361,2.29784152,4399.8,4399.3,3.952]
[1756905582528,0.4769,4399.7,4398.9,3.952]
[1756905582729,0.4769,4399.6,4398.9,3.952]
[1756905583559,0.4769,4399.6,4398.8,6.22533533]
[1756905584120,0.4769,4399.6,4398.8,3.952]
[1756905585065,0.27747355,4399.6,4398.3,1.749]
[1756905585356,2.27328467,4399.0,4397.8,0.4457]
[1756905585542,6.1749,4399.5,4397.8,0.4457]
[1756905585543,2.75019943,4398.9,4397.9,2.27376701]
[1756905585745,2.75019943,4398.9,4397.8,0.4457]
[1756905585746,2.27335543,4398.8,4398.0,2.27373975]
[1756905586059,0.4769,4398.9,4398.0,2.27373084]
[1756905586257,0.4769,4398.9,4398.1,0.4457]
[1756905586556,0.5019,4399.8,4398.8,0.2993]
[1756905586732,0.5019,4399.8,4398.9,3.947]
[1756905587054,0.5019,4399.8,4399.2,2.27312883]
[1756905587449,0.5019,4399.8,4399.3,2.27304218]
[1756905587622,0.5019,4399.8,4399.4,2.27303223]
[1756905588126,0.5019,4399.8,4399.1,2.27317957]
[1756905588323,0.5019,4399.8,4399.2,2.27312489]
[1756905588630,0.5019,4399.8,4399.1,2.27317313]
[1756905588952,0.5019,4399.8,4398.9,4.3927]
[1756905589128,0.5019,4399.8,4399.3,2.27308711]
[1756905589326,0.5019,4399.8,4399.1,2.27317374]
[1756905589523,0.5019,4399.8,4398.9,0.4457]
[1756905589724,2.27303852,4399.4,4398.4,2.1937]
[1756905590047,0.4769,4399.3,4398.4,8.42724478]
[1756905590370,0.4769,4399.3,4398.7,2.27335261]
[1756905590668,0.4769,4399.3,4398.4,6.1537]
[1756905590835,0.4769,4399.3,4398.6,2.27344125]
[1756905591040,0.4769,4399.3,4398.4,6.1537]
[1756905591244,0.4769,4399.3,4398.4,6.76907]
[1756905591453,0.4769,4399.3,4398.8,2.2732983]
[1756905591660,0.4769,4399.7,4399.2,0.1136]
[1756905591833,0.026,4399.8,4399.2,0.1136]
[1756905592029,2.86347634,4399.6,4399.0,0.1136]
[1756905592234,3.15242397,4399.6,4399.0,0.1136]
[1756905592454,0.87944763,4399.6,4399.0,0.1136]
[1756905592642,0.1136,4399.6,4399.0,0.1136]
[1756905592824,0.1136,4399.6,4399.0,2.3868276]
[1756905593029,0.1136,4399.6,4399.1,2.27314431]
[1756905593240,2.38654415,4399.6,4398.9,0.1136]
[1756905593464,0.4769,4399.5,4398.9,2.38687483]
[1756905594170,0.4769,4399.5,4398.9,2.38688015]
[1756905594532,0.4769,4399.5,4398.9,0.1136]
[1756905594960,0.76584416,4399.5,4398.9,0.1136]
[1756905595165,2.74989273,4399.5,4398.9,0.1136]
[1756905595494,0.4769,4399.5,4398.9,2.3868843]
[1756905596067,2.74988627,4399.5,4398.9,0.1136]
[1756905596266,0.4769,4399.5,4398.9,0.1136]
[1756905596651,0.4769,4399.5,4398.9,2.38688374]
[1756905597467,2.74990827,4399.5,4398.9,0.1136]
[1756905597674,5.702,4399.4,4397.2,0.4457]
[1756905597969,5.702,4399.4,4397.3,2.72380557]
[1756905597970,2.2736593,4398.2,4397.3,2.72380557]
[1756905598134,3.956,4398.1,4397.3,0.4497]
[1756905598335,4.4329,4398.1,4397.4,2.27406533]
[1756905598658,4.4329,4398.1,4397.4,2.27406206]
[1756905598976,6.70661776,4398.1,4397.4,2.27406915]
[1756905599176,2.27376523,4398.0,4397.3,2.72380732]
[1756905599598,6.70662067,4398.1,4397.3,2.72380732]
[1756905599908,0.46,4398.0,4397.3,0.4497]
[1756905600099,2.73377397,4398.0,4397.3,0.4497]
[1756905600301,0.46,4398.0,4397.3,2.72381845]
[1756905600464,2.2738125,4397.9,4397.3,0.4497]
[1756905600661,3.39548422,4397.9,4397.3,0.004]
[1756905601869,6.39548422,4397.9,4397.3,0.004]
[1756905602365,6.6848125,4397.9,4397.3,0.004]
[1756905602564,6.6858125,4397.9,4397.3,0.004]
[1756905602967,2.7338125,4397.9,4397.3,0.004]
[1756905603171,6.6858125,4397.9,4397.3,0.004]
[1756905603370,3.952,4397.9,4397.3,0.4381]
[1756905603601,2.27360571,4398.3,4397.3,0.4381]
[1756905603807,2.208,4398.4,4397.8,0.3195]
[1756905604007,5.699,4398.4,4397.8,3.02743031]
[1756905604191,5.699,4398.4,4397.8,0.7536]
[1756905604192,5.6982,4398.4,4397.8,0.7536]
[1756905604368,7.9717552,4398.4,4397.8,0.7536]
[1756905604573,2.27365745,4398.2,4397.8,0.7536]
[1756905604770,2.27360995,4398.3,4397.8,0.7536]
[1756905605102,5.6982,4398.4,4397.8,0.7536]
[1756905605600,7.97176615,4398.4,4397.8,0.7536]
[1756905605789,3.952,4398.3,4397.8,0.7536]
[1756905606191,2.27370623,4398.2,4397.8,0.7536]
[1756905606509,2.73368503,4398.2,4397.8,0.029]
[1756905606998,0.46,4398.2,4397.8,0.029]
[1756905607169,3.952,4398.3,4397.8,0.4631]
[1756905607565,4.0656,4398.3,4397.8,0.4631]
[1756905607988,6.33923108,4398.3,4397.8,0.029]
[1756905608199,6.33923108,4398.3,4397.9,0.4341]
[1756905608400,6.33923108,4398.3,4397.8,0.029]
[1756905608401,2.73366328,4398.2,4397.8,0.029]
[1756905608888,4.0656,4398.3,4398.1,0.2905]
[1756905609294,0.001,4398.4,4398.3,2.27360571]
[1756905609473,0.001,4398.4,4398.3,3.84064628]
[1756905610412,0.001,4398.4,4398.2,0.1136]
[1756905610784,0.001,4398.4,4398.2,0.5477]
[1756905611080,0.001,4398.4,4398.3,0.7246]
[1756905611620,0.001,4398.4,4398.3,0.8382]
[1756905612698,0.001,4398.4,4398.3,0.1136]
[1756905612906,0.461,4398.4,4398.0,0.1136]
[1756905613113,0.001,4398.4,4398.0,0.1136]
[1756905614313,2.27374888,4398.1,4397.8,0.029]
[1756905614613,6.67676988,4398.0,4397.8,0.1426]
[1756905614799,4.403,4398.0,4397.8,0.1426]
[1756905615374,6.67677142,4398.0,4397.8,0.1426]
[1756905615776,3.943,4398.0,4397.8,0.1426]
[1756905616821,1.0153,4398.4,4397.8,0.1426]
[1756905616822,0.1146,4398.4,4397.9,1.2188]
[1756905617002,0.1146,4398.4,4398.3,2.27360571]
[1756905617391,0.001,4398.4,4398.3,3.60600571]
[1756905620622,0.001,4398.4,4398.3,0.8382]
[1756905620978,0.001,4398.4,4398.3,3.11180571]
[1756905621178,0.001,4398.4,4398.3,2.67770571]
[1756905621609,0.001,4398.4,4398.3,0.4041]
[1756905622101,0.001,4398.4,4398.1,0.1136]
[1756905622102,0.461,4398.4,4398.1,0.1136]
[1756905622309,2.2736574,4398.2,4398.1,0.1136]
[1756905622506,2.7336574,4398.2,4398.1,0.1136]
[1756905623381,2.2738125,4397.9,4397.8,0.029]
[1756905623582,2.3874125,4397.9,4397.8,0.029]
[1756905623783,2.8474125,4397.9,4397.8,0.029]
[1756905624015,3.63972783,4397.9,4397.8,0.029]
[1756905624216,6.63972783,4397.9,4397.8,0.029]
[1756905625386,10.57772783,4397.9,4397.8,0.029]
[1756905626523,0.001,4398.4,4397.8,0.3195]
[1756905626818,3.938,4398.3,4397.8,0.3195]
[1756905627016,3.938,4398.3,4397.9,0.4341]
[1756905627822,2.2736574,4398.2,4397.9,0.4341]
[1756905628520,3.9372,4398.3,4398.0,0.4341]
[1756905629331,6.21081567,4398.3,4398.0,0.4341]
[1756905630133,2.27366691,4398.2,4398.0,0.4341]
[1756905630429,3.9382,4398.3,4397.8,0.029]
[1756905630430,2.2737091,4398.1,4397.8,0.029]
[1756905630603,3.9382,4398.3,4397.8,0.029]
[1756905630804,3.9382,4398.3,4397.9,0.4569]
[1756905631006,3.938,4398.2,4398.0,0.4569]
[1756905631413,6.21166874,4398.2,4398.0,0.4569]
[1756905631700,3.938,4398.2,4398.0,0.4569]
[1756905631929,0.001,4398.3,4398.0,0.4569]
[1756905632133,3.939,4398.1,4397.8,0.029]
[1756905632334,3.939,4398.1,4398.0,0.2964]
[1756905632835,3.939,4398.1,4398.0,0.7533]
[1756905633133,3.939,4398.3,4398.0,1.5311186]
[1756905633319,3.939,4398.3,4398.1,0.9291]
[1756905633634,3.939,4398.3,4397.8,0.029]
[1756905633930,6.21263049,4398.3,4397.8,0.029]
[1756905634232,3.939,4398.3,4397.9,0.5705]
[1756905634428,3.939,4398.3,4397.9,0.1136]
[1756905634429,0.471,4398.2,4397.9,0.1136]
[1756905634640,2.85829432,4398.2,4397.8,0.029]
[1756905634796,2.27371323,4398.1,4397.8,0.029]
[1756905635001,3.938,4398.0,4397.8,0.029]
[1756905635198,2.2738125,4397.9,4397.8,0.029]
[1756905635622,2.8584125,4397.9,4397.8,0.029]
[1756905642311,5.8584125,4397.9,4397.8,0.029]
[1756905644244,6.6504125,4397.9,4397.8,1e-08]
[1756905645429,18.01349121,4397.4,4397.3,1e-08]
[1756905645621,26.81409121,4397.4,4397.3,1e-08]
[1756905645833,27.28509121,4397.4,4397.3,1e-08]
[1756905647336,27.39782447,4397.4,4397.3,1e-08]
[1756905648564,6.06612275,4397.3,4396.8,1e-08]
[1756905648743,2.38792964,4396.9,4396.8,1e-08]
[1756905648932,10.11892964,4396.9,4396.8,1e-08]
[1756905649131,10.58992964,4396.9,4396.8,1e-08]
[1756905652051,10.58992964,4396.9,4396.8,0.76860001]
[1756905652052,0.1136,4396.9,4396.8,0.76860001]
[1756905652252,0.67,4397.3,4396.8,1.22550001]
[1756905652418,0.67,4397.2,4396.9,0.59515]
[1756905652623,3.953,4397.1,4397.0,0.9291]
[1756905652819,3.953,4397.1,4397.0,1.2255]
[1756905653015,3.9522,4397.1,4397.0,1.2255]
[1756905655216,3.9522,4397.1,4397.0,3.49977791]
[1756905656035,3.9522,4397.1,4397.0,1.2255]
[1756905657558,3.9522,4397.1,4395.1,14.94742017]
[1756905657743,1.749,4397.4,4395.2,0.4722]
[1756905657744,14.94742017,4395.6,4395.2,0.4722]
[1756905658051,3.96672011,4396.9,4395.0,8.56]
[1756905658052,1.749,4395.7,4395.5,0.2964]
[1756905658253,3.991,4395.6,4395.5,0.7686]
[1756905658566,2.27513769,4395.4,4395.0,8.56]
[1756905658761,3.994,4395.3,4395.0,9.0322]
[1756905658925,2.27526108,4395.1,4395.0,9.0322]
[1756905659125,6.26926108,4395.1,4395.0,9.3286]
[1756905659552,6.26926108,4395.1,4395.0,9.7662]
[1756905659751,3.994,4395.1,4395.0,9.7662]
[1756905660643,3.994,4395.1,4395.0,12.04151285]
[1756905661370,3.994,4395.1,4395.0,9.7662]
[1756905661733,3.994,4395.1,4395.0,12.04151285]
[1756905662266,3.994,4395.1,4395.0,9.7662]
[1756905662571,3.994,4395.1,4395.0,12.04151285]
[1756905663572,3.994,4395.1,4395.0,8.56]
[1756905664237,9.26926108,4395.1,4395.0,8.56]
[1756905664430,6.994,4395.1,4395.0,8.56]
[1756905665540,9.26926108,4395.1,4395.0,8.56]
[1756905665969,6.994,4395.1,4395.0,8.56]
[1756905666338,9.26926108,4395.1,4395.0,8.56]
[1756905667380,6.994,4395.1,4395.0,8.56]
[1756905667580,6.994,4395.1,4395.0,8.8747]
[1756905667972,9.26926108,4395.1,4395.0,8.8747]
[1756905668653,9.26926108,4395.1,4395.0,8.56]
[1756905669186,9.26926108,4395.1,4395.0,8.564]
[1756905669788,9.58546108,4395.1,4395.0,8.564]
[1756905669986,5.27531285,4395.0,4394.5,0.004]
[1756905670162,14.06427335,4394.6,4394.5,0.004]
[1756905670365,18.35647335,4394.6,4394.5,0.004]
[1756905670760,18.85417335,4394.6,4394.5,0.004]
[1756905670956,0.4977,4394.6,4394.5,0.3187]
[1756905671158,4.4717,4394.6,4394.5,0.7563]
[1756905671373,4.4717,4394.6,4394.5,0.3187]
[1756905671593,0.4977,4394.6,4394.5,0.3187]
[1756905671784,3.974,4394.6,4394.5,1.229]
[1756905673261,3.974,4394.6,4394.5,0.3187]
[1756905673859,3.974,4394.6,4394.5,0.7563]
[1756905674260,6.24951995,4394.6,4394.5,0.3187]
[1756905674670,3.974,4394.6,4394.5,0.3187]
[1756905674886,3.974,4394.6,4394.5,0.004]
[1756905675083,7.03841995,4394.6,4394.5,0.004]
[1756905675875,7.95391995,4394.6,4394.5,0.004]
[1756905676273,0.4727,4394.6,4394.5,0.7563]
[1756905676492,3.969,4394.6,4394.5,1.229]
[1756905677303,3.969,4394.6,4394.5,0.7563]
[1756905677503,6.56071995,4394.6,4394.5,0.004]
[1756905677912,6.55991995,4394.6,4394.5,0.004]
[1756905678298,7.01661995,4394.6,4394.5,0.004]
[1756905678500,7.58901995,4394.6,4394.5,0.004]
[1756905680185,2.70531995,4394.6,4394.5,0.004]
[1756905680404,6.67031995,4394.6,4394.5,0.004]
[1756905680597,6.35411995,4394.6,4394.5,0.004]
[1756905680883,9.35411995,4394.6,4394.5,0.004]
[1756905681489,9.67031995,4394.6,4394.5,0.004]
[1756905681694,9.35411995,4394.6,4394.5,0.004]
[1756905682110,0.5512,4394.6,4394.5,0.7563]
[1756905682311,4.0766,4394.6,4394.5,1.229]
[1756905683176,0.1136,4394.6,4394.5,1.229]
[1756905683376,4.0766,4394.6,4394.5,1.229]
[1756905684524,4.0726,4394.6,4394.5,1.229]
[1756905687020,4.0736,4394.6,4394.5,1.229]
[1756905687794,0.001,4394.6,4394.5,1.3519]
[1756905687993,0.001,4394.6,4394.5,3.74107173]
[1756905687994,2.83,4394.6,4394.5,3.74107173]
[1756905688601,2.83,4394.6,4394.5,3.61817173]
[1756905690094,2.83,4394.6,4394.5,1.3426]
[1756905690893,2.83,4394.6,4394.5,0.4323]
[1756905691224,2.83,4394.6,4394.5,0.004]
[1756905691225,5.86171995,4394.6,4394.5,0.004]
[1756905691538,6.33081995,4394.6,4394.5,0.004]
[1756905692097,9.33081995,4394.6,4394.5,0.004]
[1756905692915,9.42204366,4394.6,4394.5,0.004]
[1756905695332,9.61154366,4394.6,4394.5,0.004]
[1756905695729,10.54104366,4394.6,4394.5,0.004]
[1756905697162,3.09222371,4394.6,4394.5,0.004]
[1756905697332,7.15282371,4394.6,4394.5,0.297]
[1756905698539,9.72414366,4394.6,4394.5,0.004]
[1756905699758,10.65364366,4394.6,4394.5,0.004]
[1756905701936,10.65284366,4394.6,4394.5,0.004]
[1756905702540,5.77634366,4394.6,4394.5,0.004]
[1756905702743,9.42554366,4394.6,4394.5,0.004]
[1756905703252,10.65084366,4394.6,4394.5,0.004]
[1756905703853,11.44284366,4394.6,4394.5,0.004]
[1756905704049,2.27572709,4394.2,4394.1,0.004]
[1756905704254,22.87308049,4394.2,4394.1,0.004]
[1756905704476,24.09838049,4394.2,4394.1,0.004]
[1756905705340,2.27583067,4394.0,4393.8,0.025]
[1756905705568,6.06798607,4393.7,4393.6,0.004]
[1756905705779,10.30878607,4393.7,4393.6,0.004]
[1756905705983,11.23828607,4393.7,4393.6,0.004]
[1756905710570,18.39828607,4393.7,4393.6,0.004]
[1756905710795,2.27619329,4393.3,4393.2,0.004]
[1756905710992,23.66554669,4393.3,4393.2,0.004]
[1756905711303,32.05084669,4393.3,4393.2,0.004]
[1756905712195,3.06840055,4392.9,4392.8,0.025]
[1756905712516,10.12700055,4392.9,4392.8,0.025]
[1756905712699,2.27669253,4392.4,4392.2,0.4285]
[1756905712877,1.75,4392.3,4392.2,0.4285]
[1756905713203,1.75,4392.3,4392.2,0.3785]
[1756905713204,8.8086,4392.3,4392.2,0.3785]
[1756905713412,8.8086,4392.3,4392.2,0.6715]
[1756905713708,8.8086,4392.3,4392.2,1.1588]
[1756905713903,4.8636,4392.3,4392.2,1.1588]
[1756905714113,5.695,4392.3,4392.2,1.1588]
[1756905714296,5.695,4392.3,4392.2,3.55144335]
[1756905714897,5.695,4392.3,4392.2,3.43556335]
[1756905715516,0.1136,4392.6,4392.2,3.43556335]
[1756905715678,0.025,4393.8,4392.2,3.43556335]
[1756905715679,1.8636,4393.3,4392.6,2.27654776]
[1756905715885,1.8636,4393.3,4392.5,0.1136]
[1756905715886,4.8636,4393.3,4392.7,0.9158]
[1756905716087,4.8636,4393.3,4393.2,0.293]
[1756905716088,1.8636,4393.3,4393.2,0.293]
[1756905716303,1.8636,4393.3,4393.2,1.2088]
[1756905716304,8.8086,4393.3,4393.2,1.2088]
[1756905716895,4.8636,4393.3,4393.2,1.2088]
[1756905717096,8.8086,4393.3,4393.2,1.2088]
[1756905717281,11.08479329,4393.3,4393.2,0.293]
[1756905717484,5.27626873,4393.2,4392.8,0.4285]
[1756905717685,6.22133388,4393.1,4392.8,0.4285]
[1756905718127,0.1136,4393.0,4392.8,0.4285]
[1756905718429,3.945,4392.9,4392.8,0.4873]
[1756905718599,3.945,4392.9,4392.8,0.7803]
[1756905718798,3.945,4392.9,4392.8,1.2088]
[1756905719729,4.0586,4393.0,4392.9,2.27640055]
[1756905719890,3.945,4393.0,4392.9,3.46830055]